fUSD/lending_fUSD_20251103
["ID","MTS","AMOUNT","RATE_DAILY","PERIOD"]
[392980664,1762194639844,-500.0,0.00021918,4]
[392980666,1762194639854,-500.0,0.00021918,4]
[392980667,1762194639865,-500.0,0.00021918,4]
[392980668,1762194639876,-500.0,0.00021918,4]
[392980669,1762194639887,-1246.63688715,0.00022,4]
[392980670,1762194639898,-169.0,0.00022,2]
[392980671,1762194639910,-6310.06,0.00022,7]
[392980672,1762194639921,-500.0,0.00022173,2]
[392980673,1762194640054,-500.0,0.00022173,2]
[392980674,1762194640067,-370.90412366,0.00022173,2]
[392980675,1762194640078,-500.0,0.00022173,2]
[392980676,1762194640090,-500.0,0.00022173,2]
[392980677,1762194640100,-500.0,0.00022173,2]
[392980678,1762194640110,-500.0,0.00022173,2]
[392980679,1762194640119,-500.0,0.00022173,2]
[392980680,1762194640130,-500.0,0.00022173,2]
[392980681,1762194640140,-164.34626945,0.00022173,2]
[392980682,1762194640151,-500.0,0.00022173,2]
[392980683,1762194640162,-500.0,0.00022173,2]
[392980684,1762194640172,-500.0,0.00022173,2]
[392980685,1762194640182,-501.4870916,0.00022173,2]
[392980686,1762194640192,-80864.55675023,0.000222,2]
[392980687,1762194640201,-174.10839772,0.00022269,2]
[392980688,1762194640211,-510.72939817,0.00022663,2]
[392980689,1762194640220,-500.0,0.00022721,2]
[392980690,1762194640230,-503.47786786,0.00022721,2]
[392980691,1762194640240,-1000.0,0.00022721,2]
[392980692,1762194640249,-500.0,0.00022721,2]
[392980693,1762194640259,-697.34233271,0.00022721,2]
[392980695,1762194640268,-1000.0,0.00022721,2]
[392980696,1762194640278,-6262.0509641,0.00023755,2]
[392980697,1762194640289,-154.95177794,0.00024415,2]
[392980698,1762194640299,-510.72939817,0.00024711,2]
[392980699,1762194640309,-502.67556609,0.00024773,2]
[392980700,1762194640319,-500.0,0.00024773,2]
[392980701,1762194640329,-500.0,0.00024773,2]
[392980702,1762194640338,-500.0,0.00024773,2]
[392980703,1762194640349,-500.0,0.00024773,2]
[392980704,1762194640358,-150.0,0.00024773,2]
[392980705,1762194640368,-1648.02,0.00024799,2]
[392980706,1762194640379,-631209.056364,0.000248,3]
[392980707,1762194640388,-500.0,0.00024822,2]
[392980708,1762194640398,-1413.42946077,0.0002489,2]
[392980709,1762194640408,-607653.87866,0.000249,3]
[392980710,1762194640418,-500.0,0.00024932,2]
[392980711,1762194640431,-500.0,0.00024932,2]
[392980712,1762194640441,-502.87918158,0.00025321,2]
[392980713,1762194640451,-351.33673282,0.00025321,2]
[392980714,1762194640460,-500.0,0.00025397,2]
[392980715,1762194640470,-500.0,0.00025459,7]
[392980716,1762194640480,-447.8349712,0.00025906,7]
[392980717,1762194640491,-1000.0,0.00026027,2]
[392980718,1762194640501,-6310.06,0.000261,7]
[392980719,1762194640511,-1000.0,0.00026301,2]
[392980720,1762194640522,-6262.0509641,0.00026353,2]
[392980721,1762194640531,-1000.0,0.00026575,2]
[392980722,1762194640542,-1000.0,0.00026676,2]
[392980723,1762194640553,-510.72939817,0.00026759,2]
[392980724,1762194640563,-1000.0,0.00026849,2]
[392980725,1762194640573,-1000.0,0.00027123,2]
[392980726,1762194640583,-350.0,0.00027397,7]
[392980727,1762194640593,-181.3,0.00027397,10]
[392980728,1762194640603,-1000.0,0.00027397,2]
[392980729,1762194640613,-456.1,0.000274,7]
[392980730,1762194640623,-819.51,0.000274,7]
[392980731,1762194640633,-1000.0,0.00027671,2]
[392980732,1762194640643,-500.0,0.0002782,30]
[392980734,1762194640654,-500.0,0.0002782,120]
[392980735,1762194640666,-500.0,0.0002782,120]
[392980736,1762194640679,-500.0,0.0002782,120]
[392980737,1762194640689,-1705.86,0.000279,2]
[392980738,1762194640699,-1000.0,0.00027945,2]
[392980739,1762194640709,-407.81025858,0.00028,60]
[392980740,1762194640719,-550.5,0.00028066,15]
[392980741,1762194640730,-1000.0,0.00028219,2]
[392980742,1762194640741,-2751.0,0.0002838,2]
[392980743,1762194640751,-1000.0,0.00028493,2]
[392980744,1762194640760,-6310.06,0.000285,7]
[392980745,1762194640770,-154.95177794,0.0002861,2]
[392980746,1762194640780,-500.0,0.00028724,7]
[392980747,1762194640790,-1000.0,0.00028767,2]
[392980748,1762194640799,-510.72939817,0.00028808,2]
[392980749,1762194640809,-176.38468156,0.00028889,2]
[392980750,1762194640819,-208.76484368,0.00028941,2]
[392980751,1762194640829,-6262.0509641,0.0002895,2]
[392980752,1762194640839,-456.1,0.00029,7]
[392980753,1762194640849,-1000.0,0.00029041,2]
[392980754,1762194640858,-819.51,0.000291,7]
[392980755,1762194640868,-1000.0,0.00029315,2]
[392980756,1762194640878,-1000.0,0.00029589,2]
[392980757,1762194640888,-174.10839772,0.00029637,2]
[392980758,1762194640897,-1000.0,0.00029863,2]
[392980759,1762194640906,-475.78950398,0.0003,120]
[392980760,1762194640917,-160.72409949,0.0003,2]
[392980761,1762194640929,-150.99999908,0.0003,120]
[392980762,1762194640938,-159.73104561,0.0003,120]
[392980763,1762194640948,-500.0,0.00030136,2]
[392980764,1762194640957,-500.0,0.00030136,10]
[392980765,1762194640967,-500.0,0.00030136,2]
[392980766,1762194640977,-3529.54,0.00030136,2]
[392980767,1762194640986,-1000.0,0.00030136,2]
[392980768,1762194640996,-500.0,0.00030136,2]
[392980769,1762194641007,-300.0,0.00030136,2]
[392980770,1762194641017,-1000.0,0.00030137,2]
[392980771,1762194641027,-500.0,0.00030137,2]
[392980772,1762194641038,-528.59454004,0.00030137,2]
[392980773,1762194641048,-500.0,0.00030137,2]
[392980774,1762194641058,-500.0,0.00030137,2]
[392980775,1762194641068,-500.0,0.00030137,2]
[392980776,1762194641078,-500.0,0.00030137,2]
[392980777,1762194641088,-285.94540045,0.00030137,2]
[392980778,1762194641098,-500.0,0.00030137,2]
[392980779,1762194641109,-500.0,0.00030137,2]
[392980780,1762194641118,-500.0,0.00030137,2]
[392980781,1762194641128,-500.0,0.00030137,2]
[392980782,1762194641139,-500.0,0.00030137,2]
[392980783,1762194641148,-500.0,0.00030137,2]
[392980784,1762194641159,-500.0,0.00030137,2]
[392980785,1762194641168,-500.0,0.00030137,2]
[392980786,1762194641178,-500.0,0.00030137,2]
[392980787,1762194641187,-500.0,0.00030137,2]
[392980788,1762194641197,-500.0,0.00030137,2]
[392980789,1762194641206,-500.0,0.00030137,2]
[392980790,1762194641216,-500.0,0.00030137,2]
[392980791,1762194641226,-500.0,0.00030137,2]
[392980792,1762194641235,-500.0,0.00030137,2]
[392980793,1762194641245,-500.0,0.00030137,2]
[392980794,1762194641254,-500.0,0.00030137,2]
[392980795,1762194641264,-500.0,0.00030137,2]
[392980796,1762194641274,-500.0,0.00030137,2]
[392980797,1762194641284,-500.0,0.00030137,2]
[392980798,1762194641294,-500.0,0.00030137,2]
[392980799,1762194641303,-500.0,0.00030137,2]
[392980800,1762194641313,-500.0,0.00030137,2]
[392980801,1762194641324,-500.0,0.00030137,2]
[392980802,1762194641333,-500.0,0.00030137,2]
[392980803,1762194641343,-500.0,0.00030137,2]
[392980804,1762194641353,-500.0,0.00030137,2]
[392980805,1762194641364,-500.0,0.00030137,2]
[392980806,1762194641375,-523.50860405,0.00030137,2]
[392980807,1762194641385,-500.0,0.00030137,2]
[392980808,1762194641395,-500.0,0.00030137,2]
[392980809,1762194641405,-500.0,0.00030137,2]
[392980810,1762194641416,-500.0,0.00030137,2]
[392980811,1762194641427,-500.0,0.00030137,2]
[392980812,1762194641437,-500.0,0.00030137,2]
[392980813,1762194641446,-500.0,0.00030137,2]
[392980814,1762194641456,-500.0,0.00030137,2]
[392980815,1762194641465,-500.0,0.00030137,2]
[392980816,1762194641475,-500.0,0.00030137,2]
[392980817,1762194641484,-500.0,0.00030137,2]
[392980818,1762194641494,-500.0,0.00030137,2]
[392980819,1762194641504,-400.0,0.00030137,2]
[392980820,1762194641513,-500.0,0.00030137,2]
[392980821,1762194641522,-500.0,0.00030137,2]
[392980822,1762194641532,-500.0,0.00030137,2]
[392980823,1762194641542,-500.0,0.00030137,2]
[392980824,1762194641551,-500.0,0.00030137,2]
[392980825,1762194641561,-500.0,0.00030137,2]
[392980826,1762194641570,-500.0,0.00030137,2]
[392980827,1762194641580,-500.0,0.00030137,2]
[392980828,1762194641589,-6653.0,0.0003015,2]
[392980829,1762194641603,-2140.0,0.0003015,2]
[392980830,1762194641613,-924.62,0.0003015,2]
[392980831,1762194641622,-893.11000058,0.00030341,14]
[392980832,1762194641632,-207.6370637,0.00030341,14]
[392980833,1762194641643,-500.0,0.0003041,2]
[392980834,1762194641654,-500.0,0.0003041,10]
[392980835,1762194641666,-500.0,0.0003041,2]
[392980836,1762194641677,-3529.54,0.0003041,2]
[392980837,1762194641687,-1000.0,0.0003041,2]
[392980838,1762194641699,-500.0,0.0003041,2]
[392980839,1762194641708,-300.0,0.0003041,2]
[392980840,1762194641719,-1000.0,0.00030411,2]
[392980841,1762194641728,-1740.512,0.00030422,26]
[392980842,1762194641737,-181.752,0.00030422,26]
[392980843,1762194641747,-6310.06,0.000305,7]
[392980844,1762194641757,-973.91,0.0003062,2]
[392980845,1762194641767,-426.7,0.00030684,2]
[392980846,1762194641776,-500.0,0.00030684,10]
[392980847,1762194641785,-500.0,0.00030684,2]
[392980848,1762194641794,-3529.54,0.00030684,2]
[392980849,1762194641804,-1000.0,0.00030684,2]
[392980850,1762194641813,-500.0,0.00030684,2]
[392980851,1762194641822,-300.0,0.00030684,2]
[392980852,1762194641831,-1000.0,0.00030685,2]
[392980853,1762194641841,-510.72939817,0.00030856,2]
[392980854,1762194641850,-361.87912259,0.00030958,10]
[392980855,1762194641859,-500.0,0.00030958,2]
[392980856,1762194641868,-3529.54,0.00030958,2]
[392980857,1762194641878,-1000.0,0.00030958,2]
[392980858,1762194641888,-500.0,0.00030958,2]
[392980859,1762194641897,-300.0,0.00030958,2]
[392980860,1762194641907,-1000.0,0.00030959,2]
[392980861,1762194641916,-456.1,0.00031,30]
[392980862,1762194641928,-819.51,0.00031,7]
[392980863,1762194641937,-500.0,0.00031232,2]
[392980864,1762194641946,-3529.54,0.00031232,2]
[392980865,1762194641956,-1000.0,0.00031232,2]
[392980866,1762194641966,-500.0,0.00031232,2]
[392980867,1762194641975,-300.0,0.00031232,2]
[392980868,1762194641985,-1000.0,0.00031233,2]
[392980869,1762194641995,-150.0,0.000315,6]
[392980870,1762194642006,-500.0,0.00031506,2]
[392980871,1762194642021,-3529.54,0.00031506,2]
[392980872,1762194642030,-1000.0,0.00031506,2]
[392980873,1762194642039,-500.0,0.00031506,2]
[392980874,1762194642048,-300.0,0.00031506,2]
[392980875,1762194642057,-1000.0,0.00031507,2]
[392980876,1762194642066,-1705.86,0.000316,2]
[392980877,1762194642075,-211.31684683,0.00031614,120]
[392980878,1762194642084,-209.80555012,0.00031614,120]
[392980879,1762194642094,-500.0,0.0003178,2]
[392980880,1762194642212,-3529.54,0.0003178,2]
[392980881,1762194642222,-1141.44842712,0.0003178,2]
[392980882,1762194642232,-397.29567561,0.0003178,2]
[392980883,1762194642241,-300.0,0.0003178,2]
[392980884,1762194642250,-1000.0,0.00031781,2]
[392980885,1762194642260,-168.63810717,0.00031937,30]
[392980886,1762194642270,-167.15061635,0.00032,120]
[392980887,1762194642279,-292.26333753,0.00032,120]
[392980888,1762194642288,-171.20462305,0.00032,120]
[392980889,1762194642297,-243.65435365,0.00032,120]
[392980890,1762194642307,-221.11195227,0.00032,120]
[392980891,1762194642316,-167.72359162,0.00032,60]
[392980892,1762194642325,-2070.43364324,0.00032,7]
[392980893,1762194642335,-500.0,0.00032054,2]
[392980894,1762194642344,-3529.54,0.00032054,2]
[392980895,1762194642354,-300.0,0.00032054,2]
[392980896,1762194642363,-1000.0,0.00032055,2]
[392980897,1762194642373,-68255.17246452,0.00032109,14]
[392980898,1762194642382,-500.0,0.00032153,120]
[392980899,1762194642392,-204.25004624,0.00032222,120]
[392980900,1762194642401,-880.73086709,0.000323,2]
[392980901,1762194642411,-500.0,0.00032328,2]
[392980902,1762194642420,-3529.54,0.00032328,2]
[392980903,1762194642429,-300.0,0.00032328,2]
[392980904,1762194642439,-1000.0,0.00032329,2]
[392980905,1762194642448,-613.05197648,0.00032602,2]
[392980906,1762194642459,-3529.54,0.00032602,2]
[392980907,1762194642469,-300.0,0.00032602,2]
[392980908,1762194642478,-1000.0,0.00032603,2]
[392980909,1762194642488,-456.1,0.000327,30]
[392980910,1762194642497,-6310.06,0.000327,7]
[392980911,1762194642507,-1047.23161582,0.00032733,7]
[392980912,1762194642517,-4758.67501417,0.000328,2]
[392980913,1762194642527,-819.51,0.000328,7]
[392980915,1762194642536,-154.95177794,0.00032806,15]
[392980916,1762194642546,-204.25004624,0.00032831,120]
[392980917,1762194642556,-3529.54,0.00032876,2]
[392980918,1762194642565,-300.0,0.00032876,2]
[392980919,1762194642575,-176.78201766,0.00032877,2]
[392980920,1762194642584,-1000.0,0.00032877,2]
[392980921,1762194642594,-510.72939817,0.00032904,2]
[392980922,1762194642603,-208.76484366,0.00032974,2]
[392980923,1762194642613,-167.15061635,0.00033,120]
[392980924,1762194642622,-292.26333753,0.00033,120]
[392980925,1762194642631,-171.20462305,0.00033,120]
[392980926,1762194642641,-221.11195227,0.00033,120]
[392980927,1762194642652,-15784.70261242,0.00033,13]
[392980928,1762194642664,-1535.80930981,0.00033,2]
[392980929,1762194642676,-151.3383476,0.00033,2]
[392980930,1762194642686,-500.0,0.0003307,120]
[392980931,1762194642696,-3529.54,0.0003315,2]
[392980933,1762194642705,-300.0,0.0003315,2]
[392980934,1762194642715,-6653.0,0.0003315,2]
[392980935,1762194642724,-2140.0,0.0003315,2]
[392980936,1762194642737,-821.0,0.0003315,2]
[392980937,1762194642746,-1000.0,0.00033151,2]
[392980938,1762194642756,-1000.0,0.00033165,2]
[392980939,1762194642765,-1705.86,0.000332,2]
[392980940,1762194642775,-162.44609222,0.00033245,2]
[392980941,1762194642785,-318.45246865,0.00033383,30]
[392980942,1762194642794,-1000.0,0.00033383,30]
[392980943,1762194642804,-3529.54,0.00033424,2]
[392980944,1762194642814,-300.0,0.00033424,2]
[392980946,1762194642823,-3000.0,0.00033425,2]
[392980947,1762194642833,-204.25004624,0.0003344,120]
[392980948,1762194642842,-1194.07466746,0.000335,2]
[392980949,1762194642852,-3529.54,0.00033698,2]
[392980950,1762194642862,-300.0,0.00033698,2]
[392980951,1762194642871,-1000.0,0.00033699,2]
[392980952,1762194642881,-532.97,0.00033799,2]
[392980953,1762194642892,-26443.3275799,0.000338,2]
[392980954,1762194642901,-292.26333753,0.000339,120]
[392980955,1762194642911,-171.20462305,0.000339,120]
[392980956,1762194642920,-221.11195227,0.000339,120]
[392980957,1762194642929,-3529.54,0.00033972,2]
[392980958,1762194642939,-300.0,0.00033972,2]
[392980959,1762194642948,-1000.0,0.00033973,2]
[392980960,1762194642957,-150.0,0.00033973,60]
[392980961,1762194642967,-578.0,0.00033973,60]
[392980962,1762194642976,-500.0,0.00033973,60]
[392980963,1762194642987,-500.0,0.00033973,2]
[392980964,1762194642997,-584.0,0.00033973,60]
[392980965,1762194643006,-500.0,0.00033973,60]
[392980966,1762194643016,-150.0,0.00033973,60]
[392980967,1762194643025,-220.63293975,0.00033973,2]
[392980968,1762194643035,-500.0,0.00033973,60]
[392980969,1762194643044,-150.0,0.00033973,2]
[392980970,1762194643053,-150.0,0.00033973,60]
[392980971,1762194643062,-488.0,0.00033973,60]
[392980972,1762194643072,-200.0,0.00033973,60]
[392980973,1762194643081,-500.0,0.00033973,2]
[392980974,1762194643090,-150.0,0.00033973,2]
[392980975,1762194643099,-150.0,0.00033973,60]
[392980976,1762194643109,-150.0,0.00033973,60]
[392980977,1762194643118,-150.0,0.00033973,2]
[392980978,1762194643127,-150.0,0.00033973,60]
[392980979,1762194643137,-500.0,0.00033973,60]
[392980980,1762194643146,-500.0,0.00033986,120]
[392980981,1762194643155,-976.96,0.00034,2]
[392980982,1762194643165,-1004.0,0.00034,7]
[392980983,1762194643175,-456.1,0.00034,30]
[392980984,1762194643184,-204.25004624,0.00034049,120]
[392980985,1762194643194,-819.51,0.000341,14]
[392980986,1762194643203,-469.92835077,0.00034102,2]
[392980987,1762194643212,-150.0,0.0003411,60]
[392980988,1762194643221,-578.0,0.0003411,60]
[392980989,1762194643231,-500.0,0.0003411,60]
[392980990,1762194643240,-500.0,0.0003411,2]
[392980991,1762194643249,-584.0,0.0003411,60]
[392980992,1762194643259,-500.0,0.0003411,60]
[392980993,1762194643269,-150.0,0.0003411,60]
[392980994,1762194643282,-435.66714502,0.0003411,60]
[392980995,1762194643292,-150.0,0.0003411,60]
[392980996,1762194643302,-488.0,0.0003411,60]
[392980997,1762194643312,-150.0,0.0003411,60]
[392980998,1762194643321,-150.0,0.0003411,60]
[392980999,1762194643332,-500.0,0.0003411,60]
[392981000,1762194643341,-6310.06,0.000342,14]
[392981001,1762194643351,-3529.54,0.00034246,2]
[392981002,1762194643361,-300.0,0.00034246,2]
[392981003,1762194643371,-1000.0,0.00034247,2]
[392981004,1762194643380,-500.0,0.00034247,5]
[392981005,1762194643391,-578.0,0.00034247,60]
[392981006,1762194643401,-500.0,0.00034247,60]
[392981008,1762194643410,-500.0,0.00034247,2]
[392981010,1762194643424,-584.0,0.00034247,60]
[392981012,1762194643434,-424.76496096,0.00034247,60]
[392981013,1762194643444,-150.0,0.00034247,60]
[392981014,1762194643454,-488.0,0.00034247,60]
[392981015,1762194643464,-211.02653668,0.00034247,60]
[392981016,1762194643473,-500.0,0.00034247,60]
[392981017,1762194643482,-157.08,0.0003436,60]
[392981018,1762194643492,-1559.58,0.00034361,60]
[392981019,1762194643502,-150.78,0.00034362,60]
[392981020,1762194643511,-578.0,0.00034384,60]
[392981021,1762194643521,-500.0,0.00034384,60]
[392981022,1762194643531,-150.0,0.00034384,2]
[392981023,1762194643541,-584.0,0.00034384,60]
[392981024,1762194643551,-150.0,0.00034384,60]
[392981025,1762194643561,-488.0,0.00034384,60]
[392981026,1762194643570,-340.64735062,0.00034384,60]
[392981027,1762194643580,-157.08,0.0003446,60]
[392981028,1762194643589,-1559.58,0.00034461,60]
[392981029,1762194643598,-150.78,0.00034462,60]
[392981030,1762194643608,-1705.31957357,0.0003449,2]
[392981031,1762194643617,-433.0,0.0003449,10]
[392981032,1762194643627,-3529.54,0.0003452,2]
[392981033,1762194643636,-300.0,0.0003452,2]
[392981034,1762194643646,-2000.0,0.00034521,2]
[392981035,1762194643658,-578.0,0.00034521,60]
[392981036,1762194643668,-500.0,0.00034521,60]
[392981037,1762194643679,-584.0,0.00034521,60]
[392981038,1762194643688,-488.0,0.00034521,60]
[392981039,1762194643699,-488.0,0.00034521,60]
[392981040,1762194643708,-157.08,0.0003456,60]
[392981041,1762194643717,-1559.58,0.00034561,60]
[392981042,1762194643727,-150.78,0.00034562,60]
[392981043,1762194643739,-1705.86,0.000346,2]
[392981044,1762194643748,-300.0,0.000346,2]
[392981045,1762194643757,-347.44250129,0.000346,2]
[392981046,1762194643768,-800.0,0.0003462,13]
[392981047,1762194643777,-800.0,0.0003462,13]
[392981048,1762194643787,-800.0,0.0003462,13]
[392981049,1762194643796,-800.0,0.0003462,13]
[392981050,1762194643805,-800.0,0.0003462,13]
[392981051,1762194643815,-800.0,0.0003462,13]
[392981052,1762194643825,-800.0,0.0003462,13]
[392981053,1762194643835,-594.0,0.0003462,13]
[392981054,1762194643844,-200.0,0.0003462,2]
[392981055,1762194643853,-200.0,0.0003462,2]
[392981056,1762194643862,-200.0,0.0003462,2]
[392981057,1762194643871,-200.0,0.0003462,2]
[392981058,1762194643881,-200.0,0.0003462,2]
[392981059,1762194643890,-200.0,0.0003462,2]
[392981060,1762194643899,-200.0,0.0003462,2]
[392981061,1762194643909,-200.0,0.0003462,2]
[392981062,1762194643918,-200.0,0.0003462,2]
[392981063,1762194643928,-200.0,0.0003462,2]
[392981064,1762194643937,-200.0,0.0003462,2]
[392981065,1762194643946,-200.0,0.0003462,2]
[392981066,1762194643955,-200.0,0.0003462,2]
[392981067,1762194643964,-200.0,0.0003462,2]
[392981068,1762194643974,-200.0,0.0003462,2]
[392981069,1762194643983,-200.0,0.0003462,2]
[392981070,1762194643992,-200.0,0.0003462,2]
[392981071,1762194644001,-200.0,0.0003462,2]
[392981072,1762194644011,-200.0,0.0003462,2]
[392981073,1762194644020,-200.0,0.0003462,2]
[392981074,1762194644029,-200.0,0.0003462,2]
[392981075,1762194644038,-200.0,0.0003462,2]
[392981076,1762194644048,-200.0,0.0003462,2]
[392981077,1762194644163,-200.0,0.0003462,2]
[392981078,1762194644175,-200.0,0.0003462,2]
[392981079,1762194644184,-200.0,0.0003462,2]
[392981080,1762194644193,-200.0,0.0003462,2]
[392981081,1762194644203,-200.0,0.0003462,2]
[392981082,1762194644212,-200.0,0.0003462,2]
[392981083,1762194644221,-200.0,0.0003462,2]
[392981084,1762194644230,-200.0,0.0003462,2]
[392981085,1762194644239,-200.0,0.0003462,2]
[392981086,1762194644249,-200.0,0.0003462,2]
[392981087,1762194644258,-200.0,0.0003462,2]
[392981088,1762194644267,-200.0,0.0003462,2]
[392981089,1762194644276,-289.0,0.0003462,2]
[392981090,1762194644285,-500.0,0.0003463,2]
[392981091,1762194644293,-1000.0,0.00034658,5]
[392981092,1762194644302,-578.0,0.00034658,60]
[392981093,1762194644312,-500.0,0.00034658,60]
[392981094,1762194644321,-584.0,0.00034658,60]
[392981095,1762194644330,-488.0,0.00034658,60]
[392981096,1762194644339,-488.0,0.00034658,60]
[392981097,1762194644348,-204.25004624,0.00034658,120]
[392981098,1762194644357,-157.08,0.0003466,60]
[392981099,1762194644366,-150.78,0.00034662,60]
[392981100,1762194644375,-157.08,0.0003476,60]
[392981101,1762194644384,-150.78,0.00034762,60]
[392981102,1762194644393,-3529.54,0.00034794,2]
[392981103,1762194644402,-300.0,0.00034794,2]
[392981104,1762194644412,-5000.0,0.00034795,2]
[392981105,1762194644420,-578.0,0.00034795,60]
[392981106,1762194644431,-553.3291033,0.00034795,60]
[392981107,1762194644440,-584.0,0.00034795,60]
[392981108,1762194644449,-488.0,0.00034795,60]
[392981109,1762194644459,-488.0,0.00034795,60]
[392981110,1762194644468,-541.03018028,0.00034849,120]
[392981111,1762194644478,-157.08,0.0003486,60]
[392981112,1762194644487,-150.78,0.00034862,60]
[392981113,1762194644496,-552.81215086,0.000349,2]
[392981114,1762194644506,-500.0,0.00034903,120]
[392981115,1762194644515,-578.0,0.00034932,60]
[392981116,1762194644525,-584.0,0.00034932,60]
[392981117,1762194644535,-488.0,0.00034932,60]
[392981118,1762194644544,-488.0,0.00034932,60]
[392981119,1762194644554,-510.72939817,0.00034953,2]
[392981120,1762194644563,-157.08,0.0003496,60]
[392981121,1762194644574,-150.78,0.00034962,60]
[392981122,1762194644583,-292.26333753,0.00035,120]
[392981123,1762194644592,-171.20462305,0.00035,120]
[392981124,1762194644602,-221.11195227,0.00035,120]
[392981125,1762194644611,-187.55408699,0.00035,30]
[392981126,1762194644621,-150.93473558,0.00035,30]
[392981127,1762194644630,-401.17786621,0.00035,2]
[392981128,1762194644639,-1218.94074751,0.00035,2]
[392981129,1762194644649,-203.04390148,0.00035,4]
[392981130,1762194644663,-157.08,0.0003506,60]
[392981131,1762194644672,-150.78,0.00035062,60]
[392981132,1762194644682,-3529.54,0.00035068,2]
[392981133,1762194644693,-300.0,0.00035068,2]
[392981134,1762194644704,-1000.0,0.00035068,2]
[392981135,1762194644713,-466.47919615,0.00035068,5]
[392981136,1762194644723,-578.0,0.00035069,60]
[392981137,1762194644734,-584.0,0.00035069,60]
[392981138,1762194644742,-488.0,0.00035069,60]
[392981139,1762194644752,-488.0,0.00035069,60]
[392981140,1762194644761,-456.1,0.000351,30]
[392981141,1762194644770,-157.08,0.0003516,60]
[392981142,1762194644780,-150.78,0.00035162,60]
[392981143,1762194644789,-578.0,0.00035206,60]
[392981144,1762194644798,-584.0,0.00035206,60]
[392981145,1762194644807,-488.0,0.00035206,60]
[392981146,1762194644816,-488.0,0.00035206,60]
[392981147,1762194644825,-157.08,0.0003526,60]
[392981148,1762194644835,-150.78,0.00035262,60]
[392981149,1762194644844,-204.25004624,0.00035267,120]
[392981150,1762194644853,-819.51,0.000353,14]
[392981151,1762194644862,-3529.54,0.00035342,2]
[392981152,1762194644872,-300.0,0.00035342,2]
[392981153,1762194644881,-1000.0,0.00035342,2]
[392981154,1762194644891,-578.0,0.00035343,60]
[392981155,1762194644900,-584.0,0.00035343,60]
[392981156,1762194644910,-488.0,0.00035343,60]
[392981157,1762194644919,-488.0,0.00035343,60]
[392981158,1762194644928,-500.0,0.00035343,2]
[392981159,1762194644938,-157.08,0.0003536,60]
[392981160,1762194644947,-150.78,0.00035362,60]
[392981161,1762194644956,-162.0,0.0003538,30]
[392981162,1762194644966,-157.08,0.0003546,60]
[392981163,1762194644975,-150.78,0.00035462,60]
[392981164,1762194644985,-578.0,0.0003548,60]
[392981165,1762194644994,-584.0,0.0003548,60]
[392981166,1762194645003,-488.0,0.0003548,60]
[392981167,1762194645012,-300.0,0.0003556,74]
[392981168,1762194645021,-157.08,0.0003556,60]
[392981169,1762194645030,-150.78,0.00035562,60]
[392981170,1762194645040,-6310.06,0.000356,14]
[392981171,1762194645050,-191.68737235,0.0003561,120]
[392981172,1762194645059,-3529.54,0.00035616,2]